[Event "Late-Titled-Tuesday-Blitz-August-29-2023"]
[Site "Chess.com"]
[Date "2023.08.29"]
[Round "2"]
[White "LastGladiator1"]
[Black "Cipy77"]
[Result "1-0"]
[WhiteElo "2889"]
[BlackElo "2564"]
[TimeControl "180+1"]
[EndTime "14:18:10 PDT"]
[Termination "LastGladiator1 won by resignation"]

1. Nf3 {[%clk 0:02:59.9]} 1... d5 {[%clk 0:02:58.8]} 2. g3 {[%clk 0:02:59.6]}
2... Nf6 {[%clk 0:02:58.5]} 3. Bg2 {[%clk 0:02:59.6]} 3... Bg4 {[%clk
0:02:59.1]} 4. O-O {[%clk 0:02:59.2]} 4... Nbd7 {[%clk 0:02:59.4]} 5. c4 {[%clk
0:02:59.2]} 5... c6 {[%clk 0:02:56.8]} 6. Qc2 {[%clk 0:02:50.9]} 6... e6 {[%clk
0:02:54.3]} 7. d4 {[%clk 0:02:50.1]} 7... Bd6 {[%clk 0:02:39]} 8. Nc3 {[%clk
0:02:48.7]} 8... O-O {[%clk 0:02:38.4]} 9. e4 {[%clk 0:02:46.4]} 9... dxe4
{[%clk 0:02:14]} 10. Nxe4 {[%clk 0:02:47.3]} 10... Bf5 {[%clk 0:02:14.5]} 11.
Nxf6+ {[%clk 0:02:43.4]} 11... Nxf6 {[%clk 0:02:15.4]} 12. Qe2 {[%clk
0:02:39.7]} 12... Re8 {[%clk 0:02:09.6]} 13. h3 {[%clk 0:02:38.6]} 13... h6
{[%clk 0:02:09.4]} 14. Bd2 {[%clk 0:02:31.8]} 14... Qe7 {[%clk 0:02:06]} 15. a3
{[%clk 0:02:05.7]} 15... a5 {[%clk 0:01:48.8]} 16. b4 {[%clk 0:01:55.7]} 16...
axb4 {[%clk 0:01:39.3]} 17. c5 {[%clk 0:01:53.4]} 17... Bc7 {[%clk 0:01:30.3]}
18. axb4 {[%clk 0:01:52.5]} 18... Nd5 {[%clk 0:01:30.2]} 19. b5 {[%clk
0:01:51.2]} 19... cxb5 {[%clk 0:00:36.7]} 20. Qxb5 {[%clk 0:01:49.8]} 20... b6
{[%clk 0:00:27.8]} 21. c6 {[%clk 0:01:42.1]} 21... Qf6 {[%clk 0:00:21.6]} 22.
Rfe1 {[%clk 0:01:18.6]} 22... h5 {[%clk 0:00:20.4]} 23. Rxa8 {[%clk 0:01:15.8]}
23... Rxa8 {[%clk 0:00:19.9]} 24. Bg5 {[%clk 0:01:16.3]} 24... Qg6 {[%clk
0:00:20]} 25. Bd2 {[%clk 0:01:12.1]} 25... Bd3 {[%clk 0:00:20.1]} 26. Qb3 {[%clk
0:01:10.5]} 26... b5 {[%clk 0:00:15.2]} 27. Nh4 {[%clk 0:01:10.2]} 27... Bc4
{[%clk 0:00:10.7]} 28. Qxc4 {[%clk 0:01:09.6]} 28... bxc4 {[%clk 0:00:10.6]} 29.
Nxg6 {[%clk 0:01:09.9]} 29... fxg6 {[%clk 0:00:11.5]} 30. Rxe6 {[%clk
0:01:10.2]} 30... c3 {[%clk 0:00:08.3]} 31. Bg5 {[%clk 0:01:06.7]} 31... Ra5
{[%clk 0:00:07.2]} 32. Be4 {[%clk 0:00:55.6]} 32... Nf6 {[%clk 0:00:04.9]} 33.
Bxf6 {[%clk 0:00:50.7]} 33... gxf6 {[%clk 0:00:05.1]} 34. Rxf6 {[%clk
0:00:51.3]} 34... Rg5 {[%clk 0:00:04.5]} 35. Kg2 {[%clk 0:00:47.9]} 35... h4
{[%clk 0:00:04.5]} 36. g4 {[%clk 0:00:47]} 36... Kg7 {[%clk 0:00:05.4]} 37. Re6
{[%clk 0:00:46.6]} 37... Ra5 {[%clk 0:00:06]} 38. Rxg6+ {[%clk 0:00:46.4]} 38...
Kf7 {[%clk 0:00:06]} 39. Rh6 {[%clk 0:00:46.8]} 39... Ra2 {[%clk 0:00:06.6]} 40.
Rh7+ {[%clk 0:00:44.1]} 40... Ke6 {[%clk 0:00:07.1]} 41. Rxc7 {[%clk 0:00:44.2]}
41... c2 {[%clk 0:00:07.4]} 42. d5+ {[%clk 0:00:43.8]} 42... Kd6 {[%clk
0:00:07.6]} 43. Rd7+ {[%clk 0:00:42.6]} 43... Ke5 {[%clk 0:00:07.6]} 44. Re7+
{[%clk 0:00:41]} 44... Kd4 {[%clk 0:00:07.5]} 45. Bxc2 {[%clk 0:00:41]} 45...
Rxc2 {[%clk 0:00:08.4]} 46. d6 {[%clk 0:00:37.5]} 46... Rxc6 {[%clk 0:00:08.6]}
47. Re1 {[%clk 0:00:37.2]} 47... Rxd6 {[%clk 0:00:05.2]} 48. Rd1+ {[%clk
0:00:37.3]} 48... Ke5 {[%clk 0:00:06.1]} 49. Rxd6 {[%clk 0:00:38.2]} 49... Kxd6
{[%clk 0:00:07]} 1-0

[Event "Late-Titled-Tuesday-Blitz-August-29-2023"]
[Site "Chess.com"]
[Date "2023.08.29"]
[Round "2"]
[White "NowInChess"]
[Black "Lennis93"]
[Result "0-1"]
[WhiteElo "2276"]
[BlackElo "2696"]
[TimeControl "180+1"]
[EndTime "14:18:10 PDT"]
[Termination "Lennis93 won on time"]

1. e4 {[%clk 0:03:00.9]} 1... Nf6 {[%clk 0:03:00.6]} 2. e5 {[%clk 0:03:00.3]}
2... Nd5 {[%clk 0:03:00.9]} 3. c4 {[%clk 0:03:01]} 3... Nb6 {[%clk 0:03:01.1]}
4. d4 {[%clk 0:03:00.2]} 4... d6 {[%clk 0:03:01.3]} 5. exd6 {[%clk 0:03:01.1]}
5... cxd6 {[%clk 0:02:59.1]} 6. Nc3 {[%clk 0:03:01.4]} 6... g6 {[%clk
0:02:59.5]} 7. Be3 {[%clk 0:03:01]} 7... Bg7 {[%clk 0:02:59.7]} 8. Rc1 {[%clk
0:03:01.3]} 8... O-O {[%clk 0:02:59.1]} 9. b3 {[%clk 0:03:01.3]} 9... Nc6 {[%clk
0:02:27.3]} 10. d5 {[%clk 0:03:00.8]} 10... Ne5 {[%clk 0:02:16.6]} 11. Be2
{[%clk 0:03:01]} 11... f5 {[%clk 0:02:07.6]} 12. f4 {[%clk 0:02:44.3]} 12... Ng4
{[%clk 0:02:06.3]} 13. Bd4 {[%clk 0:02:44.8]} 13... Bh6 {[%clk 0:01:52.6]} 14.
Qd2 {[%clk 0:02:23.8]} 14... e5 {[%clk 0:01:51.2]} 15. dxe6 {[%clk 0:02:20.5]}
15... Bxe6 {[%clk 0:01:47]} 16. Nf3 {[%clk 0:02:18.3]} 16... d5 {[%clk
0:01:45.5]} 17. c5 {[%clk 0:02:05.6]} 17... Nc8 {[%clk 0:01:43]} 18. O-O {[%clk
0:01:58.8]} 18... Ne7 {[%clk 0:01:42.8]} 19. h3 {[%clk 0:01:52.2]} 19... Nf6
{[%clk 0:01:42.4]} 20. Bxf6 {[%clk 0:01:33]} 20... Rxf6 {[%clk 0:01:43.3]} 21.
Nd4 {[%clk 0:01:28.7]} 21... Bf7 {[%clk 0:01:42.1]} 22. Bf3 {[%clk 0:01:18.3]}
22... Nc6 {[%clk 0:01:40.3]} 23. Rfd1 {[%clk 0:01:02.2]} 23... Qc7 {[%clk
0:01:32.5]} 24. g3 {[%clk 0:00:53.6]} 24... Rd8 {[%clk 0:01:30.5]} 25. Ncb5
{[%clk 0:00:40.8]} 25... Qb8 {[%clk 0:01:23.3]} 26. Nd6 {[%clk 0:00:36.1]} 26...
Bg7 {[%clk 0:01:18.2]} 27. Nxf7 {[%clk 0:00:33.1]} 27... Rxf7 {[%clk 0:01:18.1]}
28. Nb5 {[%clk 0:00:32.4]} 28... d4 {[%clk 0:01:00.2]} 29. Nd6 {[%clk
0:00:21.2]} 29... Rxd6 {[%clk 0:01:00.3]} 30. cxd6 {[%clk 0:00:20.5]} 30... Qxd6
{[%clk 0:01:01.2]} 31. Qd3 {[%clk 0:00:13.1]} 31... g5 {[%clk 0:00:58.3]} 32.
fxg5 {[%clk 0:00:07.7]} 32... Qxg3+ {[%clk 0:00:57.3]} 33. Bg2 {[%clk
0:00:08.6]} 33... Qxg5 {[%clk 0:00:55.7]} 34. Qc4 {[%clk 0:00:06.8]} 34... f4
{[%clk 0:00:53.1]} 35. Kh1 {[%clk 0:00:05.9]} 35... Kf8 {[%clk 0:00:49.4]} 36.
Bd5 {[%clk 0:00:04.2]} 36... Re7 {[%clk 0:00:46.4]} 37. Rg1 {[%clk 0:00:03.5]}
37... Qh4 {[%clk 0:00:44.5]} 38. Qd3 {[%clk 0:00:02]} 38... Re3 {[%clk
0:00:41.8]} 39. Qf5+ {[%clk 0:00:01.8]} 39... Bf6 {[%clk 0:00:42.2]} 40. Qc8+
{[%clk 0:00:01.1]} 40... Bd8 {[%clk 0:00:34.7]} 0-1

[Event "Late-Titled-Tuesday-Blitz-August-29-2023"]
[Site "Chess.com"]
[Date "2023.08.29"]
[Round "2"]
[White "GM_shahin"]
[Black "Jahonas"]
[Result "1-0"]
[WhiteElo "2709"]
[BlackElo "2434"]
[TimeControl "180+1"]
[EndTime "14:18:10 PDT"]
[Termination "GM_shahin won by resignation"]

1. e4 {[%clk 0:03:00.9]} 1... c6 {[%clk 0:02:52.9]} 2. c4 {[%clk 0:02:57.8]}
2... e5 {[%clk 0:02:50.5]} 3. Nf3 {[%clk 0:02:57.3]} 3... Qc7 {[%clk 0:02:45.6]}
4. Nc3 {[%clk 0:02:57.1]} 4... Bc5 {[%clk 0:02:42.3]} 5. d4 {[%clk 0:02:47.9]}
5... exd4 {[%clk 0:02:40.1]} 6. Nxd4 {[%clk 0:02:48.8]} 6... d6 {[%clk
0:02:35.8]} 7. g3 {[%clk 0:02:39.9]} 7... Ne7 {[%clk 0:02:31.8]} 8. Bg2 {[%clk
0:02:39.4]} 8... Nd7 {[%clk 0:02:26.8]} 9. O-O {[%clk 0:02:40]} 9... O-O {[%clk
0:02:25.7]} 10. Nb3 {[%clk 0:02:38.9]} 10... a5 {[%clk 0:02:22.9]} 11. Bf4
{[%clk 0:02:37.4]} 11... Rd8 {[%clk 0:02:02.3]} 12. Na4 {[%clk 0:02:25.2]} 12...
b6 {[%clk 0:01:56.1]} 13. h4 {[%clk 0:02:03.2]} 13... Ng6 {[%clk 0:01:52.4]} 14.
Bg5 {[%clk 0:02:02.7]} 14... f6 {[%clk 0:01:47.9]} 15. Bd2 {[%clk 0:02:02.2]}
15... Nde5 {[%clk 0:01:43.4]} 16. h5 {[%clk 0:01:55.6]} 16... Nf8 {[%clk
0:01:42.5]} 17. Nbxc5 {[%clk 0:01:50.7]} 17... dxc5 {[%clk 0:01:40.9]} 18. Qc2
{[%clk 0:01:47.3]} 18... Be6 {[%clk 0:01:31.1]} 19. b3 {[%clk 0:01:47]} 19...
Rd7 {[%clk 0:01:22.2]} 20. h6 {[%clk 0:01:47.4]} 20... g6 {[%clk 0:01:13.4]} 21.
Bc3 {[%clk 0:01:45.4]} 21... Rad8 {[%clk 0:01:01.4]} 22. Rad1 {[%clk 0:01:46.1]}
22... Bg4 {[%clk 0:00:57.5]} 23. Rxd7 {[%clk 0:01:42.7]} 23... Rxd7 {[%clk
0:00:54.5]} 24. f4 {[%clk 0:01:43.1]} 24... Nd3 {[%clk 0:00:47.2]} 25. Bxf6
{[%clk 0:01:43]} 25... Nb4 {[%clk 0:00:45.3]} 26. Qb2 {[%clk 0:01:34.1]} 26...
Rd3 {[%clk 0:00:39.7]} 27. Be5 {[%clk 0:01:28.5]} 27... Qd8 {[%clk 0:00:34.2]}
28. Bd6 {[%clk 0:01:20.3]} 28... Rd4 {[%clk 0:00:26.2]} 29. e5 {[%clk
0:01:11.7]} 29... Ne6 {[%clk 0:00:25.2]} 30. a3 {[%clk 0:00:59.4]} 30... Nd3
{[%clk 0:00:20.5]} 31. Qb1 {[%clk 0:00:58.7]} 31... Rxd6 {[%clk 0:00:18.5]} 32.
exd6 {[%clk 0:00:58.7]} 32... Qxd6 {[%clk 0:00:18.8]} 33. Qa1 {[%clk 0:00:50.9]}
33... Be2 {[%clk 0:00:17.2]} 34. Bh3 {[%clk 0:00:48.2]} 34... Nd4 {[%clk
0:00:13.2]} 35. Nxb6 {[%clk 0:00:47.2]} 35... Bxf1 {[%clk 0:00:12.8]} 36. Qxf1
{[%clk 0:00:46.2]} 36... Qd8 {[%clk 0:00:11.6]} 37. Nd7 {[%clk 0:00:41.2]} 37...
Nb2 {[%clk 0:00:08.1]} 38. Qb1 {[%clk 0:00:30.1]} 38... Nf5 {[%clk 0:00:05.8]}
39. Bxf5 {[%clk 0:00:29.1]} 39... gxf5 {[%clk 0:00:06]} 40. Qxf5 {[%clk
0:00:28.4]} 40... Qe7 {[%clk 0:00:05.5]} 41. Nf6+ {[%clk 0:00:25.3]} 41... Kh8
{[%clk 0:00:02.9]} 42. Qc8+ {[%clk 0:00:25.1]} 1-0

[Event "Late-Titled-Tuesday-Blitz-August-29-2023"]
[Site "Chess.com"]
[Date "2023.08.29"]
[Round "2"]
[White "Sjakkerntobi"]
[Black "GianmarcoVaR"]
[Result "0-1"]
[WhiteElo "2442"]
[BlackElo "2743"]
[TimeControl "180+1"]
[EndTime "14:18:14 PDT"]
[Termination "GianmarcoVaR won by checkmate"]

1. e4 {[%clk 0:03:00.9]} 1... c5 {[%clk 0:02:58.6]} 2. Nf3 {[%clk 0:03:00.9]}
2... d6 {[%clk 0:02:58.6]} 3. d4 {[%clk 0:03:00.8]} 3... cxd4 {[%clk 0:02:59.3]}
4. Nxd4 {[%clk 0:03:01.7]} 4... Nf6 {[%clk 0:02:59.9]} 5. Nc3 {[%clk 0:03:02]}
5... a6 {[%clk 0:03:00.6]} 6. Rg1 {[%clk 0:03:02.5]} 6... h5 {[%clk 0:03:00.3]}
7. h3 {[%clk 0:03:01.1]} 7... Nc6 {[%clk 0:02:56.9]} 8. Be3 {[%clk 0:02:46.9]}
8... Nxd4 {[%clk 0:02:47.6]} 9. Bxd4 {[%clk 0:02:46.1]} 9... e5 {[%clk
0:02:48.3]} 10. Be3 {[%clk 0:02:45.9]} 10... h4 {[%clk 0:02:48.9]} 11. g4 {[%clk
0:02:42.7]} 11... hxg3 {[%clk 0:02:48.5]} 12. Rxg3 {[%clk 0:02:43.5]} 12... Be6
{[%clk 0:02:45.3]} 13. Qd2 {[%clk 0:02:33.9]} 13... Rc8 {[%clk 0:02:45.7]} 14.
Bg2 {[%clk 0:02:32.5]} 14... g6 {[%clk 0:02:13.1]} 15. Bg5 {[%clk 0:02:28.1]}
15... Be7 {[%clk 0:02:13.1]} 16. O-O-O {[%clk 0:02:24.8]} 16... Nh5 {[%clk
0:02:11.5]} 17. Bxe7 {[%clk 0:02:24.3]} 17... Qxe7 {[%clk 0:02:12.4]} 18. Re3
{[%clk 0:01:56]} 18... Nf4 {[%clk 0:02:12.3]} 19. Bf1 {[%clk 0:01:56.3]} 19...
Rc6 {[%clk 0:02:09.4]} 20. Kb1 {[%clk 0:01:47.7]} 20... Kf8 {[%clk 0:02:08]} 21.
Nd5 {[%clk 0:01:47.7]} 21... Bxd5 {[%clk 0:02:06.9]} 22. exd5 {[%clk 0:01:48.2]}
22... Rc7 {[%clk 0:02:04.3]} 23. Qb4 {[%clk 0:01:40.4]} 23... Kg7 {[%clk
0:02:03.1]} 24. c4 {[%clk 0:01:40.6]} 24... Rc5 {[%clk 0:01:56.8]} 25. Qc3
{[%clk 0:01:28.6]} 25... a5 {[%clk 0:01:52.5]} 26. a3 {[%clk 0:01:24.1]} 26...
Rhc8 {[%clk 0:01:52.9]} 27. b4 {[%clk 0:01:21.8]} 27... Nxd5 {[%clk 0:01:45.6]}
28. Rxd5 {[%clk 0:01:14.8]} 28... Rxd5 {[%clk 0:01:45.9]} 29. Bg2 {[%clk
0:00:36]} 29... axb4 {[%clk 0:01:40]} 30. axb4 {[%clk 0:00:35.5]} 30... Rd1+
{[%clk 0:01:37.8]} 31. Kb2 {[%clk 0:00:35.2]} 31... Rg1 {[%clk 0:01:36.6]} 32.
Bd5 {[%clk 0:00:34.2]} 32... Qh4 {[%clk 0:01:10.3]} 33. Rf3 {[%clk 0:00:30.7]}
33... f6 {[%clk 0:00:55.8]} 34. Be6 {[%clk 0:00:20]} 34... Ra8 {[%clk
0:00:46.3]} 35. Bd5 {[%clk 0:00:16.5]} 35... Raa1 {[%clk 0:00:45.4]} 36. Qe3
{[%clk 0:00:08.4]} 36... Rgb1+ {[%clk 0:00:42.7]} 37. Kc2 {[%clk 0:00:08.9]}
37... Rc1+ {[%clk 0:00:40.1]} 38. Kb2 {[%clk 0:00:09.3]} 38... Rab1+ {[%clk
0:00:39.6]} 39. Ka2 {[%clk 0:00:09.7]} 39... Ra1+ {[%clk 0:00:25.2]} 40. Kb2
{[%clk 0:00:09.6]} 40... Rcb1+ {[%clk 0:00:25.8]} 41. Kc2 {[%clk 0:00:09.7]}
41... Rxb4 {[%clk 0:00:24.5]} 42. Qc3 {[%clk 0:00:09.1]} 42... Ra2+ {[%clk
0:00:22.9]} 43. Kc1 {[%clk 0:00:08.7]} 43... Rbb2 {[%clk 0:00:21.8]} 44. Qe3
{[%clk 0:00:07.4]} 44... Re2 {[%clk 0:00:20.6]} 45. Qb6 {[%clk 0:00:07.1]} 45...
Re1# {[%clk 0:00:20.4]} 0-1

[Event "Late-Titled-Tuesday-Blitz-August-29-2023"]
[Site "Chess.com"]
[Date "2023.08.29"]
[Round "2"]
[White "JosephRyan"]
[Black "MFatigue"]
[Result "0-1"]
[WhiteElo "2342"]
[BlackElo "2511"]
[TimeControl "180+1"]
[EndTime "14:18:14 PDT"]
[Termination "MFatigue won by resignation"]

1. e4 {[%clk 0:03:00.9]} 1... e6 {[%clk 0:03:00.3]} 2. d4 {[%clk 0:02:59.1]}
2... d5 {[%clk 0:03:00.9]} 3. Nc3 {[%clk 0:02:58.5]} 3... Nf6 {[%clk 0:03:01.4]}
4. Bg5 {[%clk 0:02:53.3]} 4... Be7 {[%clk 0:03:01.4]} 5. e5 {[%clk 0:02:52.2]}
5... Nfd7 {[%clk 0:03:02]} 6. Bxe7 {[%clk 0:02:51.4]} 6... Qxe7 {[%clk
0:03:02.9]} 7. f4 {[%clk 0:02:51.2]} 7... a6 {[%clk 0:03:03.4]} 8. Nf3 {[%clk
0:02:51.3]} 8... c5 {[%clk 0:03:04.1]} 9. dxc5 {[%clk 0:02:49.3]} 9... Nc6
{[%clk 0:03:04.4]} 10. Qd2 {[%clk 0:02:49.2]} 10... Qxc5 {[%clk 0:03:04.5]} 11.
O-O-O {[%clk 0:02:47.7]} 11... b5 {[%clk 0:03:05.1]} 12. Kb1 {[%clk 0:02:46.8]}
12... Nb6 {[%clk 0:03:02.3]} 13. Nd4 {[%clk 0:02:41.5]} 13... b4 {[%clk
0:02:36.7]} 14. Nxc6 {[%clk 0:02:27.8]} 14... bxc3 {[%clk 0:02:24.6]} 15. Qxc3
{[%clk 0:02:26.8]} 15... Qxc3 {[%clk 0:02:18.3]} 16. bxc3 {[%clk 0:02:27.7]}
16... Bd7 {[%clk 0:02:08.3]} 17. Nd4 {[%clk 0:02:14.8]} 17... Ke7 {[%clk
0:02:07.2]} 18. Kc1 {[%clk 0:02:13.3]} 18... Rhc8 {[%clk 0:02:07.6]} 19. Kd2
{[%clk 0:02:13.4]} 19... Na4 {[%clk 0:02:02.8]} 20. Ne2 {[%clk 0:02:02.5]} 20...
Bb5 {[%clk 0:01:53]} 21. Rb1 {[%clk 0:01:49.1]} 21... Ra7 {[%clk 0:01:21.1]} 22.
Rb3 {[%clk 0:01:43.8]} 22... Rac7 {[%clk 0:01:21.4]} 23. h4 {[%clk 0:01:39.4]}
23... Nc5 {[%clk 0:01:21.6]} 24. Rb1 {[%clk 0:01:36.3]} 24... Ne4+ {[%clk
0:01:22]} 25. Kc1 {[%clk 0:01:28.4]} 25... Bxe2 {[%clk 0:00:27.3]} 26. Bxe2
{[%clk 0:01:28.4]} 26... Rxc3 {[%clk 0:00:27.9]} 27. Rb7+ {[%clk 0:01:23.6]}
27... Kf8 {[%clk 0:00:27.6]} 28. Rb2 {[%clk 0:01:20]} 28... a5 {[%clk
0:00:15.7]} 29. Bf3 {[%clk 0:01:13.1]} 29... Nf2 {[%clk 0:00:12.3]} 30. Rf1
{[%clk 0:00:57.6]} 30... Nd3+ {[%clk 0:00:12.8]} 31. Kb1 {[%clk 0:00:56.8]}
31... Nxb2 {[%clk 0:00:13.1]} 32. Kxb2 {[%clk 0:00:57.7]} 32... Rxc2+ {[%clk
0:00:13.8]} 33. Kb3 {[%clk 0:00:58.3]} 33... a4+ {[%clk 0:00:09.4]} 34. Kxa4
{[%clk 0:00:53.5]} 34... Rb2 {[%clk 0:00:06.2]} 35. Ka3 {[%clk 0:00:51.7]} 35...
Rb6 {[%clk 0:00:04.7]} 36. Bd1 {[%clk 0:00:50.3]} 36... Ra8+ {[%clk 0:00:04.4]}
37. Ba4 {[%clk 0:00:50.3]} 37... Rba6 {[%clk 0:00:05]} 38. Rc1 {[%clk 0:00:48]}
38... Rxa4+ {[%clk 0:00:05.5]} 39. Kb3 {[%clk 0:00:48.4]} 39... Rxa2 {[%clk
0:00:05.3]} 40. Rc7 {[%clk 0:00:47]} 40... g6 {[%clk 0:00:05.7]} 41. g4 {[%clk
0:00:46.4]} 41... R2a3+ {[%clk 0:00:05.8]} 42. Kb4 {[%clk 0:00:45.9]} 42...
R3a4+ {[%clk 0:00:06.1]} 43. Kc5 {[%clk 0:00:45.9]} 43... Rxf4 {[%clk 0:00:07]}
44. Kd6 {[%clk 0:00:45.5]} 44... Ra6+ {[%clk 0:00:05.5]} 45. Kd7 {[%clk
0:00:45.3]} 45... Kg7 {[%clk 0:00:04.2]} 46. g5 {[%clk 0:00:44.7]} 46... d4
{[%clk 0:00:04.1]} 47. Ke8 {[%clk 0:00:44]} 47... d3 {[%clk 0:00:03.7]} 48. h5
{[%clk 0:00:43.8]} 48... gxh5 {[%clk 0:00:03.6]} 49. Rxf7+ {[%clk 0:00:38.1]}
49... Rxf7 {[%clk 0:00:03.2]} 0-1

[Event "Late-Titled-Tuesday-Blitz-August-29-2023"]
[Site "Chess.com"]
[Date "2023.08.29"]
[Round "2"]
[White "slidingknight2775"]
[Black "Rinqed222"]
[Result "1-0"]
[WhiteElo "2551"]
[BlackElo "2248"]
[TimeControl "180+1"]
[EndTime "14:18:15 PDT"]
[Termination "slidingknight2775 won on time"]

1. d4 {[%clk 0:03:00.9]} 1... Nf6 {[%clk 0:02:59.8]} 2. c4 {[%clk 0:03:01.5]}
2... g6 {[%clk 0:03:00]} 3. Nc3 {[%clk 0:03:01.8]} 3... Bg7 {[%clk 0:03:00.5]}
4. Nf3 {[%clk 0:03:02.4]} 4... d6 {[%clk 0:03:00.8]} 5. Bg5 {[%clk 0:03:02.8]}
5... O-O {[%clk 0:02:59.2]} 6. e3 {[%clk 0:03:02.6]} 6... c5 {[%clk 0:02:58.6]}
7. Be2 {[%clk 0:03:02.1]} 7... h6 {[%clk 0:02:54.7]} 8. Bh4 {[%clk 0:03:01.7]}
8... g5 {[%clk 0:02:53.4]} 9. Bg3 {[%clk 0:03:01.7]} 9... Nh5 {[%clk 0:02:53.8]}
10. Qc2 {[%clk 0:03:01.2]} 10... Nxg3 {[%clk 0:02:52.7]} 11. hxg3 {[%clk
0:03:02.1]} 11... f5 {[%clk 0:02:29.3]} 12. O-O-O {[%clk 0:02:47.6]} 12... Qa5
{[%clk 0:02:23.2]} 13. Kb1 {[%clk 0:02:44]} 13... Nc6 {[%clk 0:02:20.8]} 14. a3
{[%clk 0:02:40.4]} 14... Rb8 {[%clk 0:02:09]} 15. dxc5 {[%clk 0:02:24]} 15...
dxc5 {[%clk 0:01:44.9]} 16. Bd3 {[%clk 0:01:59.6]} 16... e6 {[%clk 0:01:23.3]}
17. Rh5 {[%clk 0:00:56.8]} 17... a6 {[%clk 0:00:43.4]} 18. g4 {[%clk 0:00:30.4]}
18... b5 {[%clk 0:00:35.1]} 19. cxb5 {[%clk 0:00:24.8]} 19... axb5 {[%clk
0:00:34.1]} 20. gxf5 {[%clk 0:00:12.8]} 20... b4 {[%clk 0:00:20.7]} 21. Ne4
{[%clk 0:00:03.1]} 21... bxa3 {[%clk 0:00:15.4]} 22. b3 {[%clk 0:00:02.2]} 22...
Nb4 {[%clk 0:00:11.3]} 23. f6 {[%clk 0:00:01.7]} 23... Nxc2 {[%clk 0:00:09.1]}
24. Bxc2 {[%clk 0:00:02.6]} 24... a2+ {[%clk 0:00:08.6]} 25. Ka1 {[%clk
0:00:02.7]} 25... Qc3+ {[%clk 0:00:08.1]} 26. Nxc3 {[%clk 0:00:02.7]} 26... Bxf6
{[%clk 0:00:08.1]} 27. Rd3 {[%clk 0:00:03.1]} 27... Ba6 {[%clk 0:00:05.5]} 28.
Kxa2 {[%clk 0:00:03.2]} 28... Bxd3 {[%clk 0:00:05.3]} 29. Bxd3 {[%clk
0:00:04.1]} 29... Bxc3 {[%clk 0:00:05.7]} 30. Rxh6 {[%clk 0:00:04.5]} 30... Ra8+
{[%clk 0:00:04.1]} 31. Kb1 {[%clk 0:00:04.5]} 31... Rfb8 {[%clk 0:00:04.1]} 32.
Kc2 {[%clk 0:00:03.7]} 32... Bg7 {[%clk 0:00:03.2]} 33. Rg6 {[%clk 0:00:04.2]}
33... Kf7 {[%clk 0:00:03]} 34. Nxg5+ {[%clk 0:00:03.9]} 34... Kg8 {[%clk
0:00:01.4]} 35. Nxe6 {[%clk 0:00:03.5]} 1-0

[Event "Late-Titled-Tuesday-Blitz-August-29-2023"]
[Site "Chess.com"]
[Date "2023.08.29"]
[Round "2"]
[White "Joshukid"]
[Black "kiwibobo"]
[Result "1-0"]
[WhiteElo "2548"]
[BlackElo "2378"]
[TimeControl "180+1"]
[EndTime "14:18:15 PDT"]
[Termination "Joshukid won by resignation"]

1. Nf3 {[%clk 0:03:00.9]} 1... Nf6 {[%clk 0:02:57.2]} 2. c4 {[%clk 0:03:00.1]}
2... g6 {[%clk 0:02:54.3]} 3. b3 {[%clk 0:02:59.9]} 3... Bg7 {[%clk 0:02:54.7]}
4. Bb2 {[%clk 0:03:00]} 4... O-O {[%clk 0:02:55.5]} 5. g3 {[%clk 0:02:59.8]}
5... d6 {[%clk 0:02:55.1]} 6. d4 {[%clk 0:02:59.6]} 6... e5 {[%clk 0:02:54.6]}
7. dxe5 {[%clk 0:02:53.6]} 7... dxe5 {[%clk 0:02:53.8]} 8. Qxd8 {[%clk
0:02:51.1]} 8... Rxd8 {[%clk 0:02:53.2]} 9. Nxe5 {[%clk 0:02:46.4]} 9... Ng4
{[%clk 0:02:40.1]} 10. Nd3 {[%clk 0:02:43.2]} 10... Bxb2 {[%clk 0:02:36.3]} 11.
Nxb2 {[%clk 0:02:43]} 11... Nc6 {[%clk 0:02:30.6]} 12. h3 {[%clk 0:02:37.9]}
12... Nb4 {[%clk 0:02:06.3]} 13. Na3 {[%clk 0:02:31.8]} 13... Nf6 {[%clk
0:01:59.1]} 14. Bg2 {[%clk 0:02:27.9]} 14... c6 {[%clk 0:01:56.9]} 15. g4 {[%clk
0:01:12.6]} 15... Be6 {[%clk 0:01:44.9]} 16. g5 {[%clk 0:00:38]} 16... Nh5
{[%clk 0:01:27.1]} 17. Be4 {[%clk 0:00:34.6]} 17... Rd4 {[%clk 0:01:18.8]} 18.
Bb1 {[%clk 0:00:27.4]} 18... Rad8 {[%clk 0:00:52.8]} 19. Nc2 {[%clk 0:00:25.7]}
19... Nxc2+ {[%clk 0:00:48.4]} 20. Bxc2 {[%clk 0:00:25.6]} 20... Rd2 {[%clk
0:00:47.9]} 21. Rd1 {[%clk 0:00:24.1]} 21... Rxd1+ {[%clk 0:00:21.1]} 22. Nxd1
{[%clk 0:00:25]} 22... Nf4 {[%clk 0:00:19.7]} 23. e3 {[%clk 0:00:24]} 23... Nxh3
{[%clk 0:00:19.5]} 24. f4 {[%clk 0:00:23]} 24... Kg7 {[%clk 0:00:14.7]} 25. Be4
{[%clk 0:00:21]} 25... Bf5 {[%clk 0:00:14.5]} 26. Bxf5 {[%clk 0:00:19.3]} 26...
Rxd1+ {[%clk 0:00:13.9]} 27. Kxd1 {[%clk 0:00:18.3]} 27... Nf2+ {[%clk
0:00:14.8]} 28. Ke2 {[%clk 0:00:18.2]} 28... Nxh1 {[%clk 0:00:15.2]} 29. Bc8
{[%clk 0:00:17.3]} 29... Ng3+ {[%clk 0:00:13.4]} 30. Kf3 {[%clk 0:00:17.8]}
30... Nf5 {[%clk 0:00:14.3]} 31. Bxb7 {[%clk 0:00:18]} 31... c5 {[%clk
0:00:14.6]} 32. Bc8 {[%clk 0:00:16.5]} 32... Nd6 {[%clk 0:00:14.5]} 33. Bh3
{[%clk 0:00:14.1]} 33... Kf8 {[%clk 0:00:13.6]} 34. e4 {[%clk 0:00:14.8]} 34...
Ke7 {[%clk 0:00:14.2]} 35. e5 {[%clk 0:00:15.4]} 35... Nb7 {[%clk 0:00:14.2]}
36. Ke4 {[%clk 0:00:15.1]} 36... Na5 {[%clk 0:00:14.6]} 37. Kd5 {[%clk
0:00:15.1]} 37... Nb7 {[%clk 0:00:15.3]} 38. Kc6 {[%clk 0:00:15.4]} 38... Nd8+
{[%clk 0:00:16.2]} 39. Kxc5 {[%clk 0:00:14.9]} 39... Nb7+ {[%clk 0:00:16]} 40.
Kc6 {[%clk 0:00:15.2]} 40... Nd8+ {[%clk 0:00:16.2]} 41. Kc7 {[%clk 0:00:15.5]}
41... Ne6+ {[%clk 0:00:16.4]} 42. Bxe6 {[%clk 0:00:15.9]} 42... Kxe6 {[%clk
0:00:17.2]} 43. c5 {[%clk 0:00:16.5]} 1-0